bitfinex-derivatives/quotes_SOLF0:USTF0_20250113
["timestamp","ask_amount","ask_price","bid_price","bid_amount"]
[1736791259360,2.8306,176.73,176.67,22.13660459]
[1736791259561,2.8297,176.78,176.68,2.8312]
[1736791259764,25.47090459,176.82,176.67,28.41660459]
[1736791260151,2.8302,176.75,176.71,2.8307]
[1736791260462,25.47090459,176.82,176.67,28.41660459]
[1736791260858,2.8301,176.76,176.67,28.41660459]
[1736791261254,2.8297,176.78,176.73,2.8303]
[1736791261454,2.8297,176.78,176.7,22.13660459]
[1736791261658,3.3343,176.82,176.7,22.13660459]
[1736791261855,2.8299,176.77,176.7,22.13660459]
[1736791262059,3.3343,176.82,176.67,28.41660459]
[1736791262060,25.47090459,176.82,176.67,28.41660459]
[1736791262360,2.8295,176.79,176.73,2.8303]
[1736791262562,3.3343,176.82,176.73,2.8303]
[1736791262860,3.3343,176.82,176.74,6.28]
[1736791263061,2.8295,176.79,176.75,2.8299]
[1736791263260,2.8295,176.79,176.74,6.28]
[1736791263562,28.9359304,176.85,176.77,2.8297]
[1736791263563,2.8292,176.81,176.77,2.8297]
[1736791264167,6.79932581,176.85,176.75,1.6277]
[1736791264371,2.829,176.82,176.78,2.8296]
[1736791265864,3.3536,176.89,176.76,22.13660459]
[1736791266158,3.3536,176.89,176.79,22.13660459]
[1736791266357,2.8277,176.91,176.82,2.8289]
[1736791266564,0.23291,176.91,176.81,6.28]
[1736791266759,0.23291,176.91,176.82,22.13660459]
[1736791266966,2.8279,176.89,176.85,2.8284]
[1736791267168,0.23291,176.91,176.83,1.6329]
[1736791267463,3.06051,176.91,176.85,22.13660459]
[1736791267663,0.23291,176.91,176.85,22.13660459]
[1736791268064,0.23291,176.91,176.88,2.828]
[1736791268259,0.23291,176.91,176.85,22.13660459]
[1736791268260,3.2916,176.98,176.89,6.28]
[1736791268466,22.13660459,177.03,176.89,6.28]
[1736791268767,25.32460459,177.03,176.91,2.8274]
[1736791268966,253.68556321,177.13,176.94,22.13660459]
[1736791268967,156.56556321,177.13,176.94,22.13660459]
[1736791269168,22.13660459,177.1,176.95,1.5846]
[1736791269358,22.13660459,177.1,176.96,6.3]
[1736791271071,2.8255,177.05,176.99,2.8262]
[1736791271464,2.8255,177.04,176.99,2.8262]
[1736791272066,22.13660459,177.1,176.96,6.3]
[1736791272570,22.13660459,177.04,176.92,6.32]
[1736791272771,2.827,176.95,176.92,6.32]
[1736791273070,1.601,177.03,176.92,6.32]
[1736791273375,22.13660459,177.07,176.93,22.13660459]
[1736791273669,22.13660459,177.07,176.95,2.8269]
[1736791273868,2.8263,176.99,176.93,22.13660459]
[1736791274560,1.601,177.08,176.93,22.13660459]
[1736791275159,2.8255,177.04,176.95,2.8269]
[1736791275363,1.601,177.08,176.95,2.8269]
[1736791275967,1.601,177.08,176.93,22.13660459]
[1736791276967,22.13660459,177.06,176.92,6.32]
[1736791277269,2.8265,176.98,176.92,9.1472]
[1736791277465,2.8265,176.98,176.92,6.32]
[1736791277770,22.13660459,177.06,176.92,6.32]
[1736791277965,22.13660459,177.03,176.9,3.1418]
[1736791278165,3.347,177.02,176.9,3.1418]
[1736791279164,2.8271,176.94,176.9,3.1418]
[1736791279359,2.8271,176.94,176.89,2.8278]
[1736791279567,2.8275,176.92,176.87,1.5969]
[1736791279863,22.13660459,177.0,176.87,1.5969]
[1736791280063,3.347,177.02,176.89,22.13660459]
[1736791281069,7.921,177.08,176.95,22.13660459]
[1736791281271,7.921,177.08,176.96,6.32]
[1736791281272,1.6128,177.07,176.96,6.32]
[1736791281469,1.6128,177.07,176.99,2.8262]
[1736791281667,1.6128,177.07,176.96,11.1026]
[1736791281972,2.8259,177.02,176.96,11.1026]
[1736791282274,1.6128,177.07,176.96,11.1026]
[1736791282468,2.8262,177.0,176.96,11.1026]
[1736791282668,22.13660459,177.06,176.92,22.13660459]
[1736791282874,22.13660459,177.06,176.91,6.34]
[1736791283165,22.13660459,177.03,176.91,6.34]
[1736791283365,22.13660459,177.0,176.87,4.7927]
[1736791283572,22.13660459,176.97,176.82,22.13660459]
[1736791283872,1.5898,176.96,176.82,24.96540459]
[1736791284063,1.5898,176.96,176.81,6.34]
[1736791284064,1.5898,176.96,176.85,22.13660459]
[1736791284269,1.5898,176.96,176.86,2.8282]
[1736791284270,2.8275,176.92,176.86,2.8282]
[1736791284467,1.5898,176.96,176.85,22.13660459]
[1736791285267,3.3419,176.99,176.88,22.13660459]
[1736791285464,3.3419,176.99,176.88,28.47660459]
[1736791287374,1.7002,177.02,176.88,28.47660459]
[1736791287675,1.6819,177.04,176.91,22.13660459]
[1736791287868,2.8269,176.96,176.92,2.8272]
[1736791288070,1.6819,177.04,176.91,22.13660459]
[1736791288470,2.827,176.95,176.91,22.13660459]
[1736791288675,1.6819,177.04,176.91,22.13660459]
[1736791288865,2.8261,177.01,176.91,22.13660459]
[1736791289069,1.6819,177.04,176.91,22.13660459]
[1736791289477,2.8276,176.91,176.88,28.47660459]
[1736791289678,22.13660459,177.03,176.88,28.47660459]
[1736791290180,2.8275,176.92,176.88,31.30460459]
[1736791290374,22.13660459,177.03,176.88,31.30460459]
[1736791290676,22.13660459,177.03,176.88,28.47660459]
[1736791290873,1.6819,177.04,176.91,22.13660459]
[1736791292482,1.6819,177.04,176.91,24.96410459]
[1736791292780,25.44750459,177.09,176.91,22.13660459]
[1736791293080,27.08150459,177.09,176.96,2.8266]
[1736791293281,27.08150459,177.09,176.97,9.6618]
[1736791293476,2.8252,177.06,176.97,9.6618]
[1736791293672,27.08150459,177.09,176.97,9.6618]
[1736791293875,27.08150459,177.09,176.97,6.36]
[1736791294078,2.8264,176.98,176.97,6.36]
[1736791294274,22.13660459,177.06,176.92,9.6618]
[1736791294781,2.8269,176.96,176.92,12.4892]
[1736791294982,22.13660459,177.06,176.92,9.6618]
[1736791295586,4.9449,177.09,176.94,22.13660459]
[1736791295783,4.9449,177.09,176.96,2.8266]
[1736791296384,2.8261,177.01,176.97,2.8265]
[1736791296582,2.8261,177.01,176.97,24.96310459]
[1736791297277,4.9449,177.09,176.97,24.96310459]
[1736791297477,2.8264,176.99,176.97,22.13660459]
[1736791298986,2.8261,177.0,176.97,22.13660459]
[1736791299288,4.9449,177.09,176.97,22.13660459]
[1736791299789,2.826,177.01,176.97,24.96310459]
[1736791300791,4.9449,177.09,176.97,24.96310459]
[1736791300792,2.8258,177.02,176.97,22.13660459]
[1736791300990,4.9449,177.09,177.0,22.13660459]
[1736791301189,4.9449,177.09,177.01,6.34]
[1736791301389,2.8257,177.03,177.01,6.34]
[1736791301589,5.6484,177.12,177.01,6.34]
[1736791301787,7.3591,177.12,177.01,6.34]
[1736791302092,22.13660459,177.08,176.95,1.689]
[1736791302594,2.8272,176.93,176.92,3.3754]
[1736791302790,22.13660459,177.02,176.91,97.02]
[1736791302986,27.78840459,177.02,176.91,97.02]
[1736791303187,22.13660459,177.02,176.91,97.02]
[1736791303391,5.0814,177.04,176.91,97.02]
[1736791304295,5.0814,177.04,176.92,22.13660459]
[1736791304595,2.826,177.01,176.94,2.827]
[1736791304795,5.0814,177.04,176.94,6.36]
[1736791305401,1.6506,177.04,176.94,6.36]
[1736791305896,1.6506,177.04,176.95,2.8269]
[1736791306101,5.6497,177.08,176.95,26.55320459]
[1736791306398,2.8264,176.99,176.95,28.23870459]
[1736791307300,2.8264,176.98,176.95,25.41180459]
[1736791307595,22.13660459,177.05,176.91,97.02]
[1736791307993,2.8271,176.94,176.91,97.02]
[1736791308200,22.13660459,177.05,176.91,97.02]
[1736791308600,2.826,177.01,176.92,24.96400459]
[1736791308797,5.65,177.07,176.92,22.13660459]
[1736791309198,2.8266,176.98,176.94,2.827]
[1736791309894,3.3103,177.09,176.95,22.13660459]
[1736791309895,2.8262,177.0,176.95,22.13660459]
[1736791310094,3.3103,177.09,176.96,5.0864]
[1736791310297,3.3103,177.09,176.97,6.36]
[1736791311102,3.3103,177.09,176.92,28.49660459]
[1736791311298,22.13660459,177.05,176.92,6.36]
[1736791311503,2.827,176.95,176.92,6.36]
[1736791311701,22.13660459,177.05,176.92,6.36]
[1736791312303,2.8271,176.94,176.92,6.36]
[1736791313101,22.13660459,177.05,176.92,6.36]
[1736791313298,2.8269,176.95,176.92,6.36]
[1736791313596,22.13660459,177.05,176.91,103.36]
[1736791313802,2.8265,176.98,176.94,2.8269]
[1736791314103,5.65,177.07,176.92,22.13660459]
[1736791314299,5.65,177.07,176.95,2.8268]
[1736791315001,2.8264,176.99,176.95,2.8268]
[1736791315206,1.5987,177.1,176.98,22.13660459]
[1736791315397,1.5987,177.1,176.99,6.36]
[1736791315601,1.5987,177.1,176.99,8.0686]
[1736791315898,1.5987,177.1,177.01,2.8259]
[1736791316404,2.8249,177.08,177.01,2.8259]
[1736791316600,1.5987,177.1,177.01,2.8259]
[1736791316901,1.5987,177.1,176.99,8.0686]
[1736791317105,2.8254,177.05,176.99,8.0686]
[1736791317697,2.7649142,177.13,177.01,22.13660459]
[1736791317905,2.8252,177.06,177.01,22.13660459]
[1736791318708,1.1291142,177.13,177.01,22.13660459]
[1736791319903,1.1291142,177.13,176.99,8.0686]
[1736791320407,1.1291142,177.13,176.99,21.7586]
[1736791320710,22.13660459,177.12,176.99,21.7586]
[1736791321798,2.8258,177.02,176.99,24.5848]
[1736791322000,2.8258,177.02,176.99,21.7586]
[1736791322209,2.8261,177.0,176.99,13.69]
[1736791322401,2.8261,177.0,176.99,4.738]
[1736791322608,22.13660459,177.06,176.94,1.6637]
[1736791322907,2.8269,176.95,176.94,1.6637]
[1736791323501,2.8269,176.95,176.92,23.66409521]
[1736791323502,2.8274,176.92,176.91,97.02]
[1736791323701,22.13660459,177.0,176.86,9.5972]
[1736791323903,5.0319,176.99,176.86,3.2372]
[1736791324108,22.13660459,176.97,176.86,3.2372]
[1736791324798,22.13660459,176.97,176.85,6.36]
[1736791325002,5.0319,176.99,176.85,28.49660459]
[1736791325411,5.0319,176.99,176.88,22.13660459]
[1736791325605,1.6883,176.99,176.88,22.13660459]
[1736791325806,2.8266,176.97,176.91,22.13660459]
[1736791326002,4.8945,177.05,176.92,7.9798]
[1736791326407,0.96702862,177.04,176.94,22.13660459]
[1736791326911,0.96702862,177.04,176.97,22.13660459]
[1736791327110,3.79262862,177.04,176.99,2.8261]
[1736791327309,2.8256,177.04,177.0,6.38]
[1736791327610,2.8248,177.09,177.0,6.38]
[1736791327812,27.03110459,177.12,177.0,6.38]
[1736791328702,2.8256,177.04,177.0,6.38]
[1736791328906,27.03110459,177.12,177.0,6.38]
[1736791329206,2.8249,177.08,176.98,1.6078]
[1736791329409,27.03110459,177.12,176.98,1.6078]
[1736791330515,2.8258,177.03,176.98,1.6078]
[1736791330715,27.03110459,177.12,176.98,1.6078]
[1736791331917,27.03110459,177.12,176.98,15.5978]
[1736791332612,22.13660459,177.05,176.98,13.99]
[1736791332809,4.7838,177.04,176.98,2.9777]
[1736791333011,4.7838,177.04,176.9,31.65723632]
[1736791333514,4.7838,177.04,176.9,23.76920459]
[1736791333720,22.13660459,177.02,176.9,1.6326]
[1736791334111,22.13660459,177.02,176.9,4.4603]
[1736791334517,4.7838,177.04,176.93,2.8272]
[1736791335018,4.7838,177.04,176.9,1.6326]
[1736791335318,22.13660459,177.02,176.89,6.38]
[1736791335515,22.13660459,176.99,176.89,6.38]
[1736791336116,22.13660459,176.96,176.84,1.5839]
[1736791336423,2.8283,176.87,176.84,1.5839]
[1736791336714,4.8252,176.95,176.84,1.5839]
[1736791336916,4.8252,176.95,176.81,28.53660459]
[1736791337507,4.8252,176.95,176.81,22.13660459]
[1736791337712,4.8252,176.95,176.82,2.829]
[1736791337908,4.8252,176.95,176.84,22.13660459]
[1736791338319,22.13660459,176.93,176.79,3.2984]
[1736791338517,22.13660459,176.93,176.79,9.7184]
[1736791338720,2.8285,176.86,176.81,2.8291]
[1736791339219,2.8286,176.85,176.81,2.8291]
[1736791340521,22.13660459,176.93,176.8,6.4]
[1736791340917,22.13660459,176.93,176.8,16.64]
[1736791341317,22.13660459,176.93,176.8,10.24]
[1736791342123,2.8286,176.85,176.8,13.0692]
[1736791342515,2.8286,176.85,176.8,10.24]
[1736791343016,22.13660459,176.93,176.8,10.24]
[1736791343216,22.13660459,176.93,176.8,12.63]
[1736791343422,2.8286,176.85,176.8,12.63]
[1736791343615,22.13660459,176.93,176.8,12.63]
[1736791344019,2.8291,176.81,176.8,12.63]
[1736791344423,2.8301,176.76,176.72,23.78710459]
[1736791344714,4.9936,176.86,176.72,23.78710459]
[1736791345622,2.8293,176.8,176.75,22.13660459]
[1736791345811,4.9936,176.86,176.75,22.13660459]
[1736791346020,4.9936,176.86,176.72,23.78710459]
[1736791346323,4.9936,176.86,176.75,22.13660459]
[1736791346521,1.6796,176.86,176.78,22.13660459]
[1736791346824,2.8281,176.88,176.81,2.8291]
[1736791347021,1.6796,176.91,176.81,2.8291]
[1736791347320,1.6796,176.91,176.79,6.42]
[1736791347516,2.8286,176.85,176.8,2.8292]
[1736791347717,1.6796,176.91,176.79,6.42]
[1736791348221,2.8288,176.84,176.79,9.2493]
[1736791348621,1.6796,176.91,176.79,6.42]
[1736791349218,2.8287,176.84,176.8,2.8293]
[1736791349910,1.6796,176.91,176.81,22.13660459]
[1736791350115,3.3645,176.93,176.81,22.13660459]
[1736791350318,3.3645,176.93,176.84,22.13660459]
[1736791350722,2.828,176.89,176.84,24.96510459]
[1736791351018,1.5976,176.96,176.84,22.13660459]
[1736791351227,1.5636,177.02,176.87,22.13660459]
[1736791351419,1.5636,177.02,176.8,1.6864]
[1736791351420,4.8702,177.02,176.9,22.13660459]
[1736791351721,4.8702,177.02,176.91,8.1064]
[1736791352024,2.8266,176.97,176.91,8.1064]
[1736791352223,4.8702,177.02,176.91,8.1064]
[1736791352425,2.8264,176.98,176.94,2.8271]
[1736791352614,1.5976,177.02,176.93,22.13660459]
[1736791352925,2.8264,176.99,176.93,24.96380459]
[1736791353125,2.8264,176.99,176.93,22.13660459]
[1736791353520,2.8264,176.98,176.94,2.8271]
[1736791353727,1.5976,177.02,176.93,22.13660459]
[1736791354228,2.8267,176.97,176.93,22.13660459]
[1736791356021,2.8268,176.96,176.92,2.8272]
[1736791356226,1.5976,177.02,176.92,2.8272]
[1736791356422,1.5976,177.02,176.91,8.1064]
[1736791356626,2.8265,176.98,176.93,2.8271]
[1736791358234,1.5899,177.07,176.93,22.13660459]
[1736791358434,1.5899,177.07,176.96,22.13660459]
[1736791359534,2.8255,177.04,176.96,22.13660459]
[1736791359735,1.6968,177.08,176.97,1.6772]
[1736791359937,22.13660459,177.12,176.97,1.6772]
[1736791359938,1.5771,177.12,176.99,22.13660459]
[1736791360130,2.8249,177.08,177.0,1.6094]
[1736791361037,1.5771,177.12,177.0,1.6094]
[1736791361238,23.71370459,177.12,177.0,1.6094]
[1736791361437,23.71370459,177.12,176.98,6.38]
[1736791361827,23.71370459,177.12,176.98,9.2064]
[1736791362026,23.71370459,177.12,176.98,6.38]
[1736791362427,2.8253,177.05,176.98,6.38]
[1736791362631,23.71370459,177.12,176.98,6.38]
[1736791362831,1.5771,177.12,177.01,22.13660459]
[1736791363027,2.8247,177.09,177.05,2.8252]
[1736791363226,1.5771,177.12,177.01,22.13660459]
[1736791363633,1.5771,177.12,176.98,28.51660459]
[1736791364033,1.5771,177.12,177.01,22.13660459]
[1736791364337,22.13660459,177.15,177.01,22.13660459]
[1736791365539,3.2797,177.16,177.01,22.13660459]
[1736791365935,3.2797,177.16,177.05,2.8252]
[1736791366237,22.13660459,177.15,177.05,6.4]
[1736791366938,3.2797,177.16,177.05,6.4]
[1736791368036,1.6809,177.16,177.05,6.4]
[1736791368342,22.13660459,177.21,177.06,3.215]
[1736791368638,2.8241,177.13,177.09,2.8246]
[1736791369038,1.624,177.2,177.07,22.13660459]
[1736791369842,1.624,177.2,177.08,2.8248]
[1736791370236,1.624,177.2,177.07,22.13660459]
[1736791371039,1.624,177.2,177.09,2.8246]
[1736791371436,1.624,177.2,177.07,22.13660459]
[1736791371637,1.624,177.2,177.1,22.13660459]
[1736791371938,3.268,177.22,177.1,22.13660459]
[1736791372736,2.8237,177.16,177.12,2.824]
[1736791372937,3.268,177.22,177.07,22.13660459]
[1736791373240,22.13660459,177.21,177.07,22.13660459]
[1736791373441,2.8241,177.13,177.07,22.13660459]
[1736791374031,2.8234,177.18,177.08,2.8247]
[1736791374235,22.13660459,177.21,177.06,3.215]
[1736791375245,2.8245,177.11,177.07,2.8249]
[1736791376337,2.8245,177.1,177.07,2.8249]
[1736791376539,22.13660459,177.21,177.06,3.215]
[1736791377136,2.8241,177.13,177.06,3.215]
[1736791377736,3.268,177.22,177.09,22.13660459]
[1736791378837,3.268,177.22,177.1,2.8245]
[1736791379034,2.8241,177.13,177.09,22.13660459]
[1736791379240,22.13660459,177.21,177.06,25.35160459]
[1736791380147,3.268,177.22,177.09,22.13660459]
[1736791380941,2.8239,177.14,177.1,2.8243]
[1736791381133,3.268,177.22,177.09,22.13660459]
[1736791381639,2.8237,177.16,177.09,22.13660459]
[1736791381845,1.5677,177.23,177.12,22.13660459]
[1736791382139,7.2299,177.29,177.15,22.13660459]
[1736791382345,0.96507555,177.28,177.18,22.13660459]
[1736791382541,2.8224,177.24,177.19,1.7255]
[1736791382740,1.5869,177.29,177.19,1.7255]
[1736791383146,3.3336,177.31,177.2,2.8229]
[1736791383648,2.8221,177.26,177.21,2.8228]
[1736791383953,3.3336,177.31,177.21,22.13660459]
[1736791384144,1.7159,177.34,177.21,22.13660459]
[1736791384746,2.8216,177.29,177.23,2.8223]
[1736791385253,1.7159,177.34,177.23,2.8223]
[1736791385254,2.8216,177.28,177.23,2.8223]
[1736791385655,1.7159,177.34,177.23,2.8223]
[1736791385851,2.8219,177.27,177.23,2.8223]
[1736791386749,2.8223,177.24,177.21,22.13660459]
[1736791387454,22.13660459,177.33,177.19,1.7255]
[1736791387855,2.8225,177.23,177.19,4.5486]
[1736791388755,22.13660459,177.33,177.19,1.7255]
[1736791389956,2.8229,177.2,177.18,6.4]
[1736791390155,22.13660459,177.3,177.18,6.4]
[1736791390455,2.8226,177.22,177.18,9.2232]
[1736791390655,22.13660459,177.3,177.18,6.4]
[1736791390856,28.51660459,177.3,177.16,1.7215]
[1736791391055,2.8232,177.19,177.16,1.7215]
[1736791391256,28.51660459,177.3,177.16,1.7215]
[1736791392256,22.13660459,177.33,177.18,22.13660459]
[1736791392760,2.8223,177.25,177.2,2.8229]
[1736791393165,1.7159,177.34,177.21,28.51660459]
[1736791393359,2.8217,177.28,177.21,28.51660459]
[1736791393854,2.8217,177.28,177.23,2.8224]
[1736791394055,2.8221,177.26,177.21,28.51660459]
[1736791394459,2.8221,177.26,177.22,2.8225]
[1736791394754,1.7159,177.34,177.21,28.51660459]
[1736791395554,1.7159,177.34,177.21,6.38]
[1736791396355,23.10428923,177.33,177.18,22.13660459]
[1736791396555,22.13660459,177.3,177.17,6.36]
[1736791396955,2.8229,177.21,177.16,4.5449]
[1736791397354,22.13660459,177.3,177.16,1.7215]
[1736791397556,22.13660459,177.27,177.12,22.13660459]
[1736791397754,22.13660459,177.24,177.1,6.36]
[1736791397955,2.8229,177.2,177.1,6.36]
[1736791398257,4.8515,177.26,177.12,22.13660459]
[1736791398449,4.8515,177.26,177.15,22.13660459]
[1736791399163,2.8229,177.2,177.16,2.8235]
[1736791399352,4.8515,177.26,177.1,6.36]
[1736791399353,4.8515,177.26,177.12,22.13660459]
[1736791399854,2.8234,177.18,177.12,28.49660459]
[1736791400761,2.8237,177.16,177.12,28.49660459]
[1736791400959,4.8515,177.26,177.12,28.49660459]
[1736791401358,2.8238,177.15,177.12,28.49660459]
[1736791401562,4.8515,177.26,177.12,28.49660459]
[1736791402263,4.8515,177.26,177.15,22.13660459]
[1736791402865,2.8228,177.21,177.17,2.8233]
[1736791403166,4.8515,177.26,177.15,22.13660459]
[1736791405157,4.8515,177.26,177.17,2.8234]
[1736791405364,4.8515,177.26,177.15,22.13660459]
[1736791405865,4.8515,177.26,177.12,28.49660459]
[1736791406275,27.78100459,177.25,177.09,22.13660459]
[1736791406560,27.78100459,177.25,177.09,28.47660459]
[1736791406766,27.78100459,177.25,177.09,22.13660459]
[1736791406966,27.78100459,177.25,177.09,28.47660459]
[1736791407466,2.8239,177.14,177.09,28.47660459]
[1736791407870,2.8239,177.14,177.1,2.8244]
[1736791408060,6.32,177.23,177.09,22.13660459]
[1736791408266,22.13660459,177.19,177.06,22.13660459]
[1736791408470,3.4379,177.18,177.06,22.13660459]
[1736791408663,5.0095,177.18,177.06,22.13660459]
[1736791409164,2.8241,177.13,177.06,22.13660459]
[1736791409366,5.0095,177.18,177.06,22.13660459]
[1736791409769,5.0095,177.18,177.08,2.8247]
[1736791410470,22.13660459,177.25,177.09,22.13660459]
[1736791410662,1.7184,177.24,177.12,22.13660459]
[1736791410868,2.8226,177.22,177.17,2.8232]
[1736791411164,1.5716,177.29,177.18,22.13660459]
[1736791411969,2.8225,177.23,177.18,24.95970459]
[1736791412371,2.8225,177.23,177.19,2.823]
[1736791412671,2.8225,177.23,177.18,22.13660459]
[1736791412672,2.8222,177.25,177.18,22.13660459]
[1736791412873,2.8222,177.25,177.2,2.8228]
[1736791413077,2.8221,177.25,177.21,22.13660459]
[1736791413263,1.6598,177.33,177.21,22.13660459]
[1736791413469,1.6598,177.33,177.22,3.3027]
[1736791413666,2.822,177.26,177.22,3.3027]
[1736791414575,1.6598,177.33,177.22,3.3027]
[1736791415271,2.8216,177.29,177.24,22.13660459]
[1736791415476,1.6895,177.37,177.24,22.13660459]
[1736791415868,2.821,177.33,177.24,22.13660459]
[1736791416074,1.6895,177.37,177.24,22.13660459]
[1736791416571,1.7206,177.38,177.27,22.13660459]
[1736791416871,2.821,177.32,177.27,31.27820459]
[1736791417076,1.7206,177.38,177.27,31.27820459]
[1736791417279,1.7206,177.38,177.27,28.45660459]
[1736791417578,2.8203,177.37,177.32,2.821]
[1736791417971,156.56556321,177.47,177.33,22.13660459]
[1736791418175,156.56556321,177.47,177.36,22.13660459]
[1736791418678,3.2237,177.51,177.39,22.13660459]
[1736791418871,0.96893571,177.5,177.39,22.13660459]
[1736791419073,0.9689164,177.49,177.39,22.13660459]
[1736791419274,3.2237,177.51,177.39,22.13660459]
[1736791419875,25.36030459,177.51,177.37,2.8201]
[1736791420080,0.96883503,177.5,177.36,22.13660459]
[1736791420392,3.2237,177.51,177.39,22.13660459]
[1736791420578,1.6448,177.51,177.4,1.6666]
[1736791420776,2.8187,177.47,177.41,6.32]
[1736791421178,1.6448,177.51,177.41,6.32]
[1736791421481,2.8181,177.5,177.42,22.13660459]
[1736791421779,2.8181,177.5,177.42,23.81730459]
[1736791422078,2.8184,177.49,177.43,2.8191]
[1736791422384,1.6017,177.57,177.42,23.81730459]
[1736791422685,2.8188,177.46,177.42,23.81730459]
[1736791423084,22.13660459,177.55,177.42,1.6807]
[1736791423285,0.96859421,177.54,177.41,6.32]
[1736791423680,2.8191,177.44,177.4,3.3012]
[1736791423881,22.13660459,177.52,177.4,3.3012]
[1736791424083,1.659,177.51,177.4,1.6666]
[1736791424384,2.8194,177.43,177.4,1.6666]
[1736791424585,1.659,177.51,177.4,1.6666]
[1736791425382,22.13660459,177.49,177.37,1.6757]
[1736791425583,3.3417,177.48,177.37,1.6757]
[1736791425988,3.3417,177.48,177.34,6.32]
[1736791425989,22.13660459,177.46,177.34,6.32]
[1736791426483,2.8203,177.37,177.34,6.32]
[1736791426782,22.13660459,177.46,177.34,6.32]
[1736791427084,2.8205,177.36,177.34,6.32]
[1736791427276,22.13660459,177.46,177.34,6.32]
[1736791427585,2.8195,177.42,177.36,22.13660459]
[1736791427878,3.3417,177.48,177.36,22.13660459]
[1736791428077,2.819,177.45,177.4,2.8197]
[1736791428378,6.32,177.58,177.41,6.32]
[1736791428582,5.93758224,177.55,177.41,6.32]
[1736791428785,2.8187,177.47,177.42,2.8194]
[1736791428977,4.969,177.55,177.41,6.32]
[1736791429174,4.969,177.55,177.42,1.6293]
[1736791429375,4.969,177.55,177.42,23.76590459]
[1736791429578,2.8184,177.49,177.44,2.8191]
[1736791430079,4.969,177.55,177.42,23.76590459]
[1736791430784,4.969,177.55,177.44,2.8191]
[1736791431986,2.8179,177.52,177.44,2.8191]
[1736791432182,4.969,177.55,177.44,2.8191]
[1736791432792,4.969,177.55,177.45,2.8189]
[1736791432980,3.2944,177.55,177.45,24.95550459]
[1736791433686,2.8181,177.51,177.45,24.95550459]
[1736791433886,3.2944,177.55,177.45,24.95550459]
[1736791435685,3.2944,177.55,177.45,26.59250459]
[1736791436086,3.2944,177.55,177.45,1.637]
[1736791436592,1.6547,177.55,177.45,1.637]
[1736791436794,1.6547,177.55,177.45,23.77360459]
[1736791437392,0.23074,177.57,177.45,23.77360459]
[1736791437888,2.8175,177.54,177.48,22.13660459]
[1736791438094,0.23074,177.57,177.48,22.13660459]
[1736791438299,0.23074,177.57,177.51,22.13660459]
[1736791438486,0.23074,177.57,177.52,7.9227]
[1736791438995,0.23074,177.57,177.47,6.3]
[1736791439195,0.23074,177.57,177.48,22.13660459]
[1736791439891,1.6955,177.61,177.49,2.8183]
[1736791440689,2.8176,177.54,177.49,2.8183]
[1736791440889,2.8176,177.54,177.5,1.13]
[1736791441090,3.2907,177.65,177.51,22.13660459]
[1736791441285,3.2907,177.65,177.54,22.13660459]
[1736791441490,1.7277,177.66,177.55,2.8172]
[1736791441692,23.86430459,177.66,177.54,6.32]
[1736791442193,2.8173,177.56,177.54,6.32]
[1736791444094,2.8173,177.55,177.54,6.32]
[1736791445099,2.8178,177.52,177.51,1.5664]
[1736791445296,2.8178,177.52,177.5,1.13]
[1736791445297,22.13660459,177.6,177.5,1.13]
[1736791445498,3.2628,177.59,177.5,1.13]
[1736791445799,2.818,177.51,177.5,1.13]
[1736791447397,22.13660459,177.54,177.43,1.683]
[1736791447900,2.8189,177.45,177.43,1.683]
[1736791448095,22.13660459,177.54,177.43,1.683]
[1736791448299,22.13660459,177.54,177.43,4.5021]
[1736791448505,28.43660459,177.57,177.43,4.5021]
[1736791448701,6.3,177.57,177.47,2.8186]
[1736791449001,2.8173,177.55,177.48,22.13660459]